bitfinex/quotes_SOLUSD_20260108
["timestamp","ask_amount","ask_price","bid_price","bid_amount"]
[1767915472830,2.22963983,138.91,138.89,13.14]
[1767915475451,0.65439491,138.91,138.89,13.14]
[1767915475631,2.22963983,138.9,138.89,13.14]
[1767915475839,19.12963983,138.9,138.89,13.14]
[1767915476060,16.9,138.9,138.89,13.14]
[1767915478155,24.09942404,138.9,138.89,13.14]
[1767915478745,24.09942404,138.9,138.86,7.20125094]
[1767915478946,24.09942404,138.9,138.87,13.14]
[1767915479126,24.09942404,138.9,138.88,13.14]
[1767915480155,24.09942404,138.9,138.86,7.20125094]
[1767915480447,16.9,138.9,138.88,13.14]
[1767915482046,24.09950885,138.9,138.88,13.14]
[1767915483729,24.09950885,138.9,138.86,7.20127973]
[1767915483930,24.09950885,138.9,138.87,13.14]
[1767915486336,24.09950885,138.9,138.86,7.20127973]
[1767915486556,7.91455004,138.9,138.87,13.14]
[1767915486746,0.71504119,138.89,138.85,7.20187542]
[1767915486955,0.71504119,138.88,138.86,13.14]
[1767915487150,2.4152794,138.88,138.86,13.14]
[1767915487339,2.20347289,138.88,138.86,13.14]
[1767915487537,9.42914868,138.9,138.86,13.82588295]
[1767915487743,27.42770879,138.9,138.86,13.14]
[1767915488056,2.22963983,138.88,138.84,0.68588295]
[1767915488243,2.22963983,138.87,138.83,0.68588295]
[1767915488641,9.43111641,138.87,138.83,0.68588295]
[1767915488944,7.20147658,138.87,138.83,0.68588295]
[1767915489459,7.91651777,138.87,138.83,0.68588295]
[1767915490164,7.91651777,138.87,138.83,2.91552278]
[1767915490463,17.51504119,138.89,138.85,0.68588295]
[1767915490847,24.71536117,138.89,138.85,0.68588295]
[1767915493164,24.71536117,138.89,138.85,2.91552278]
[1767915494159,16.8,138.89,138.86,0.68588295]
[1767915494360,16.8,138.89,138.87,2.91552278]
[1767915494667,16.8,138.89,138.88,0.68588295]
[1767915495263,16.8,138.89,138.87,2.22963983]
[1767915495478,16.8,138.89,138.87,2.91552278]
[1767915495863,16.8,138.89,138.87,0.68588295]
[1767915496764,16.8,138.89,138.87,2.91552278]
[1767915497974,16.8,138.89,138.87,0.68588295]
[1767915498555,7.91453266,138.9,138.86,2.91552278]
[1767915499468,7.91453266,138.9,138.86,10.11694684]
[1767915499655,7.91453266,138.9,138.86,2.91552278]
[1767915500270,16.4,138.89,138.86,2.91552278]
[1767915501054,16.4,138.89,138.86,0.68588295]
[1767915502571,15.68495881,138.89,138.85,9.43137435]
[1767915502776,15.68495881,138.89,138.86,2.22963983]
[1767915503366,0.71504119,138.91,138.86,2.22963983]
[1767915503972,0.71504119,138.9,138.86,2.22963983]
[1767915504968,0.71504119,138.9,138.86,15.36963983]
[1767915505580,0.71504119,138.9,138.86,13.14]
[1767915506095,7.91477347,138.9,138.86,13.14]
[1767915509876,7.19973228,138.9,138.86,13.14]
[1767915513179,0.65775206,138.89,138.86,13.14]
[1767915513382,0.65775206,138.91,138.87,2.51396297]
[1767915514370,16.0,138.9,138.87,9.71447944]
[1767915518890,17.99415904,138.94,138.87,9.71447944]
[1767915518891,0.65775206,138.94,138.89,2.22963983]
[1767915519073,0.65775206,138.94,138.9,15.36963983]
[1767915519884,7.85534856,138.94,138.9,15.36963983]
[1767915520579,7.85534856,138.94,138.9,16.62395826]
[1767915520778,0.65775206,138.93,138.9,16.62395826]
[1767915522688,0.65775206,138.93,138.91,3.48395826]
[1767915523273,0.65775206,138.93,138.9,16.62395826]
[1767915525399,0.65775206,138.92,138.88,7.20020498]
[1767915525701,0.65775206,138.92,138.89,11.69]
[1767915529299,0.65775206,138.92,138.88,7.89227298]
[1767915529899,0.65775206,138.91,138.87,0.692068]
[1767915530089,0.65775206,138.9,138.86,21.03328479]
[1767915530288,0.65775206,138.9,138.85,11.37784877]
[1767915530289,0.65775206,138.89,138.85,11.37784877]
[1767915530509,0.65775206,138.89,138.85,24.51784877]
[1767915530719,0.65775206,138.89,138.85,21.03389051]
[1767915531586,0.65775206,138.89,138.85,7.89389051]
[1767915531786,0.65775206,138.89,138.85,21.03389051]
[1767915532197,0.65775206,138.9,138.87,4.17602626]
[1767915532404,0.65775206,138.9,138.87,0.692068]
[1767915537904,0.65775206,138.89,138.85,24.51794778]
[1767915538307,0.65775206,138.92,138.89,0.692068]
[1767915538787,0.65775206,138.92,138.89,4.17602626]
[1767915538987,0.65775206,138.93,138.9,0.692068]
[1767915539308,0.65775206,138.94,138.91,0.692068]
[1767915539604,0.65775206,138.94,138.91,0.63206801]
[1767915540316,0.65775206,138.94,138.91,7.83097012]
[1767915540798,0.65775206,138.96,138.92,3.48395826]
[1767915541302,0.65775206,138.96,138.93,3.48395826]
[1767915541807,0.65775206,138.96,138.93,4.17602626]
[1767915542792,0.65775206,138.96,138.93,11.37362748]
[1767915544316,0.65775206,138.96,138.93,7.88966922]
[1767915547717,0.71483931,138.97,138.94,0.71368864]
[1767915553833,0.71483931,138.97,138.94,7.9110038]
[1767915557229,31.22620313,139.0,138.94,7.9110038]
[1767915557230,0.71483931,138.99,138.96,0.71368864]
[1767915557434,0.71483931,138.99,138.96,4.17099678]
[1767915558022,0.71483931,138.99,138.96,0.68703852]
[1767915559934,0.71483931,138.99,138.96,7.88328882]
[1767915562852,0.19484269,138.98,138.91,17.99636692]
[1767915563020,10.67873735,138.99,138.92,7.91185278]
[1767915563021,3.48395826,138.95,138.92,7.91185278]
[1767915564243,3.48395826,138.96,138.93,0.71368864]
[1767915566254,11.39479182,138.97,138.93,0.71368864]
[1767915568360,3.67880095,138.96,138.93,0.71368864]
[1767915569058,0.70963934,138.95,138.91,7.91235194]
[1767915569357,3.68394892,138.94,138.9,21.0530552]
[1767915570953,10.88137718,138.94,138.9,21.0530552]
[1767915571733,10.88137718,138.94,138.9,7.9130552]
[1767915571933,7.39741892,138.94,138.9,7.9130552]
[1767915572351,7.39741892,138.94,138.91,0.71368864]
[1767915573153,0.19999066,138.94,138.91,0.71368864]
[1767915573532,0.19999066,138.94,138.9,7.91684421]
[1767915573758,0.19999066,138.94,138.91,0.71747765]
[1767915575235,0.68290772,138.97,138.92,4.20143591]
[1767915575434,0.67834319,138.97,138.94,0.71747765]
[1767915575663,0.67834319,138.97,138.94,4.20143591]
[1767915576230,0.67834319,138.97,138.94,3.48395826]
[1767915577242,0.67834319,138.97,138.93,11.3992543]
[1767915578457,0.67834319,138.97,138.93,0.71747765]
[1767915578458,0.23097385,138.96,138.93,0.71747765]
[1767915578749,0.23540281,138.94,138.91,0.71747765]
[1767915578944,0.23540281,138.94,138.92,7.19808594]
[1767915579144,0.68290772,138.95,138.92,7.19808594]
[1767915579336,0.68290772,138.95,138.92,7.91556359]
[1767915580050,0.68290772,138.96,138.92,11.39952185]
[1767915580253,0.68290772,138.96,138.93,0.71747765]
[1767915580836,0.67834319,138.94,138.91,0.71747765]
[1767915581037,0.67834319,138.94,138.9,11.40051713]
[1767915581356,3.71493211,138.93,138.89,7.91733944]
[1767915582454,10.91288102,138.93,138.89,7.91733944]
[1767915582660,9.65968331,138.93,138.89,7.91733944]
[1767915584645,7.42892276,138.93,138.89,10.14809999]
[1767915588064,0.57386949,138.89,138.82,6.6801107]
[1767915588242,2.23076055,138.87,138.81,2.23076055]
[1767915588560,2.23076055,138.87,138.82,2.23076055]
[1767915588765,2.23076055,138.88,138.82,2.23076055]
[1767915589061,2.23076055,138.88,138.83,2.23076055]
[1767915589440,7.20097933,138.87,138.83,2.23076055]
[1767915589763,9.43173988,138.87,138.82,7.20321912]
[1767915589962,9.43173988,138.87,138.78,3.93971692]
[1767915589963,7.20097933,138.87,138.8,0.71747765]
[1767915590144,7.20097933,138.87,138.82,0.71747765]
[1767915590145,2.23076055,138.86,138.82,0.71747765]
[1767915590348,2.23076055,138.85,138.82,0.71747765]
[1767915590748,2.23076055,138.83,138.79,0.71747765]
[1767915590956,2.73523308,138.83,138.79,0.71747765]
[1767915591161,2.76067439,138.81,138.78,0.2]
[1767915591367,0.52991384,138.81,138.78,0.2]
[1767915592750,2.76067439,138.81,138.78,0.2]
[1767915593353,2.76067439,138.81,138.78,0.91747765]
[1767915595762,2.23076055,138.8,138.78,0.91747765]
[1767915596765,2.23076055,138.81,138.79,0.71747765]
[1767915604262,2.23076055,138.84,138.8,0.67382255]
[1767915604786,2.23076055,138.84,138.8,7.87829944]
[1767915605695,2.23076055,138.85,138.81,0.67382255]
[1767915605887,2.23076055,138.85,138.81,13.83382255]
[1767915606188,2.30006056,138.85,138.81,13.83382255]
[1767915606373,2.23076055,138.85,138.82,0.70957956]
[1767915606869,2.23076055,138.85,138.82,7.91308385]
[1767915607066,0.5438695,138.86,138.83,0.70957956]
[1767915607067,2.77463005,138.86,138.83,0.70957956]
[1767915608573,2.77463005,138.87,138.83,0.70957956]
[1767915609287,9.97565169,138.87,138.83,0.70957956]
[1767915609876,0.5438695,138.9,138.84,0.70957956]
[1767915610087,2.77463005,138.9,138.85,0.70957956]
[1767915611271,2.77463005,138.9,138.86,0.70957956]
[1767915611473,2.23076055,138.93,138.88,0.70957956]
[1767915611677,2.30006056,138.94,138.88,0.70957956]
[1767915612273,2.30006056,138.94,138.89,0.70957956]
[1767915612675,0.06930001,138.94,138.9,0.70957956]
[1767915612884,7.26670648,138.94,138.9,0.70957956]
[1767915613082,9.49746703,138.94,138.9,0.70957956]
[1767915613282,9.42816702,138.94,138.9,0.70957956]
[1767915613894,9.42778677,138.95,138.9,0.70957956]
[1767915614986,9.42778677,138.95,138.91,0.70957956]
[1767915618394,9.42778677,138.95,138.92,0.70957956]
[1767915624200,2.23076055,138.94,138.92,0.70957956]
[1767915624389,2.23076055,138.94,138.91,13.84957956]
[1767915624903,2.23076055,138.94,138.92,0.70957956]
[1767915625906,7.19702622,138.95,138.92,0.70957956]
[1767915626110,2.23076055,138.94,138.92,0.70957956]
[1767915627106,2.23076055,138.93,138.91,0.70957956]
[1767915628609,0.06930001,138.95,138.91,0.70957956]
[1767915628810,2.23076055,138.93,138.91,0.70957956]
[1767915630811,0.06930001,138.95,138.91,0.70957956]
[1767915631012,2.23076055,138.93,138.91,13.84957956]
[1767915632109,2.23076055,138.92,138.89,0.70957956]
[1767915632299,2.23076055,138.92,138.9,13.14]
[1767915632498,2.23076055,138.92,138.9,13.8289008]
[1767915633090,2.23076055,138.92,138.91,0.6889008]
[1767915633302,2.23076055,138.93,138.91,0.6889008]
[1767915635516,2.23076055,138.96,138.92,0.6889008]
[1767915635818,2.23076055,138.96,138.94,0.6889008]
[1767915636113,2.23076055,138.96,138.94,0.65796749]
[1767915638819,7.85288141,138.97,138.94,0.65796749]
[1767915639117,2.23076055,138.95,138.94,0.65796749]
[1767915639500,2.23076055,138.95,138.93,13.8289008]
[1767915641921,2.23076055,138.94,138.93,13.8289008]
[1767915644026,2.23076055,138.95,138.93,13.8289008]
[1767915644527,3.4841132,138.95,138.93,13.8289008]
[1767915650711,4.14101393,138.95,138.93,13.14]
[1767915652333,3.4841132,138.95,138.93,13.8289008]
[1767915653727,7.85327729,138.96,138.93,13.8289008]
[1767915653930,3.4841132,138.95,138.93,13.8289008]
[1767915654338,7.85327729,138.96,138.93,13.8289008]
[1767915654637,3.4841132,138.95,138.93,13.8289008]
[1767915655040,7.85327729,138.96,138.93,13.8289008]
[1767915655238,3.4841132,138.95,138.93,13.8289008]
[1767915655439,3.4841132,138.94,138.93,13.8289008]
[1767915655633,3.4841132,138.95,138.93,13.7689008]
[1767915655833,3.4841132,138.95,138.93,13.7089008]
[1767915656034,3.4841132,138.95,138.93,13.8289008]
[1767915656430,3.4841132,138.95,138.93,13.7689008]
[1767915658450,3.4841132,138.95,138.93,13.7089008]
[1767915658822,7.85327729,138.96,138.93,13.7089008]
[1767915659039,3.4841132,138.95,138.93,13.7089008]
[1767915663345,3.4841132,138.94,138.92,13.8247782]
[1767915663723,7.91522402,138.95,138.92,13.8247782]
[1767915663925,4.20229833,138.94,138.92,13.8247782]
[1767915664220,3.4841132,138.94,138.93,0.6847782]
[1767915664533,3.4841132,138.95,138.92,13.14]
[1767915664936,3.4841132,138.95,138.93,0.6847782]
[1767915665934,3.4841132,138.95,138.92,13.8247782]
[1767915666342,4.20229833,138.95,138.92,13.8247782]
[1767915666549,3.4841132,138.95,138.93,0.67027922]
[1767915669651,10.68110332,138.95,138.93,0.67027922]
[1767915669855,3.4841132,138.94,138.93,0.67027922]
[1767915670251,3.4841132,138.94,138.92,13.81027922]
[1767915671742,4.18795887,138.94,138.92,13.14]
[1767915674649,3.4841132,138.94,138.92,13.81027922]
[1767915675053,3.4841132,138.93,138.92,0.67027922]
[1767915675362,3.4841132,138.94,138.92,13.75027922]
[1767915676053,3.4841132,138.94,138.92,20.94858239]
[1767915676248,4.18795887,138.95,138.92,20.94858239]
[1767915676448,0.70384567,138.92,138.83,7.22938326]
[1767915676635,2.78891601,138.89,138.84,3.4841132]
[1767915676841,2.78891601,138.89,138.83,20.36938326]
[1767915677150,2.78891601,138.89,138.85,18.0048697]
[1767915677355,2.78891601,138.89,138.86,13.14]
[1767915678443,3.4841132,138.9,138.86,13.14]
[1767915681564,3.4841132,138.9,138.86,20.34104703]
[1767915683168,51.51450096,139.04,138.96,3.741]
[1767915683169,3.4841132,138.99,138.96,3.741]
[1767915683343,0.70384567,138.96,138.88,0.28432314]
[1767915683661,3.4841132,138.94,138.88,0.28432314]
[1767915683864,3.4841132,139.02,138.88,0.28432314]
[1767915683865,4.18795887,138.98,138.92,3.4841132]
[1767915684169,4.18795887,138.98,138.93,13.14]
[1767915684665,0.70384567,138.98,138.95,3.4841132]
[1767915684959,0.70384567,138.98,138.96,7.19631548]
[1767915685164,0.70384567,138.98,138.96,3.4841132]
[1767915686465,0.70384567,139.0,138.96,10.68042868]
[1767915686643,0.70384567,139.0,138.97,3.4841132]
[1767915687657,0.70384567,139.0,138.98,3.4841132]
[1767915688751,0.70384567,139.03,138.99,3.4841132]
[1767915688965,0.70384567,139.03,139.01,3.4841132]
[1767915689172,0.70384567,139.03,139.01,2.56484972]
[1767915689465,0.70384567,139.03,139.02,3.4841132]
[1767915691141,0.1,139.04,139.02,3.4841132]
[1767915691142,0.70384567,139.04,139.02,3.4841132]
[1767915691345,0.70384567,139.04,139.0,0.67027922]
[1767915691346,0.70384567,139.04,139.03,3.4841132]
[1767915691762,0.60384567,139.05,139.03,3.4841132]
[1767915691967,14.89071393,139.06,139.04,3.4841132]
[1767915694575,14.89071393,139.06,139.03,3.4841132]
[1767915694790,22.08197918,139.06,139.03,3.4841132]
[1767915695853,22.08197918,139.06,139.02,0.67027922]
[1767915695854,25.56609238,139.06,139.02,0.67027922]
[1767915696767,25.56609238,139.06,139.02,4.15439242]
[1767915697877,22.08197918,139.06,139.02,4.15439242]
[1767915701367,3.4841132,139.03,138.98,0.68925034]
[1767915701668,4.963761,139.05,138.97,0.68925034]
[1767915701669,3.4841132,139.01,138.97,0.68925034]
[1767915701850,0.28432314,139.04,138.96,0.68925034]
[1767915702052,3.4841132,139.0,138.96,0.68925034]
[1767915703069,3.4841132,139.0,138.96,7.88550133]
[1767915703271,3.4841132,138.97,138.9,0.68925034]
[1767915703478,3.4841132,138.94,138.9,0.68925034]
[1767915703868,3.4841132,138.93,138.88,0.68925034]
[1767915704050,3.4841132,138.93,138.89,0.68925034]
[1767915704373,3.4841132,138.93,138.9,0.68925034]
[1767915704575,2.23072967,138.93,138.9,0.68925034]
[1767915706175,9.42861166,138.93,138.9,0.68925034]
[1767915706575,2.23072967,138.92,138.9,0.68925034]
[1767915707782,2.23072967,138.92,138.89,0.68925034]
[1767915709382,9.42915542,138.92,138.89,0.68925034]
[1767915710364,2.23072967,138.92,138.89,0.68925034]
[1767915710800,9.42920733,138.92,138.89,0.68925034]
[1767915711888,2.23072967,138.9,138.87,0.68925034]
[1767915712388,2.23072967,138.89,138.87,0.68925034]
[1767915713084,2.23072967,138.88,138.84,3.7432247]
[1767915713285,2.23072967,138.86,138.84,3.7432247]
[1767915713586,2.23072967,138.85,138.83,0.68925034]
[1767915713783,2.23072967,138.85,138.82,0.68925034]
[1767915718073,9.43286838,138.85,138.82,0.68925034]
[1767915718389,2.23072967,138.85,138.82,0.68925034]
[1767915720170,2.23072967,138.85,138.82,7.89276193]
[1767915720369,2.23072967,138.85,138.82,0.68925034]
[1767915720579,9.43290873,138.85,138.82,0.68925034]
[1767915720787,2.23072967,138.84,138.8,0.68925034]
[1767915722401,9.43330856,138.84,138.8,0.68925034]
[1767915722695,2.23072967,138.83,138.8,0.68925034]
[1767915725190,7.20149791,138.86,138.81,0.66401907]
[1767915725378,2.23072967,138.85,138.81,0.66401907]
[1767915725977,2.23072967,138.84,138.81,0.66401907]
[1767915727798,9.43336756,138.84,138.81,0.66401907]
[1767915728397,2.23072967,138.83,138.81,0.66401907]
[1767915728612,2.23072967,138.82,138.8,0.71864027]
[1767915728795,2.23072967,138.83,138.8,0.71864027]
[1767915731008,2.23072967,138.89,138.83,0.71864027]
[1767915731215,2.23072967,138.91,138.87,0.71864027]
[1767915731507,24.92327267,138.93,138.88,0.71864027]
[1767915731683,2.23072967,138.92,138.88,0.71864027]
[1767915731884,2.23072967,138.91,138.88,0.71864027]
[1767915732078,2.23072967,138.91,138.86,0.71864027]
[1767915732284,7.19940191,138.91,138.87,0.71864027]
[1767915732594,9.43013158,138.91,138.87,0.71864027]
[1767915734508,9.43013158,138.91,138.87,7.91961598]
[1767915734906,9.43013158,138.91,138.88,0.71864027]
[1767915735202,2.51505281,138.95,138.88,0.71864027]
[1767915735203,2.23072967,138.92,138.88,0.71864027]
[1767915736004,7.19804862,138.93,138.89,0.71864027]
[1767915736210,9.42831697,138.94,138.9,0.71864027]
[1767915740908,17.98499963,139.01,138.92,0.71864027]
[1767915741102,14.89071393,139.06,138.96,0.71864027]
[1767915741307,2.23072967,139.01,138.98,0.71864027]
[1767915741516,2.23072967,139.0,138.96,0.71864027]
[1767915742407,2.23072967,139.0,138.96,7.91488669]
[1767915743088,2.23072967,138.97,138.94,0.71864027]
[1767915743806,2.23072967,138.98,138.94,0.71864027]
[1767915743998,2.23072967,138.97,138.94,0.71864027]
[1767915744795,9.42669458,138.97,138.94,0.71864027]
[1767915745318,9.42617425,138.98,138.94,0.71864027]
[1767915745619,7.19544458,138.98,138.97,3.75374422]
[1767915745807,7.19544458,138.98,138.94,0.71864027]
[1767915746526,17.98561151,139.0,138.94,0.71864027]
[1767915746729,2.23072967,138.97,138.94,0.71864027]
[1767915752317,17.98561151,139.0,138.94,0.71864027]
[1767915752495,2.23072967,138.97,138.94,0.71864027]
[1767915754006,9.4263437,138.98,138.94,0.71864027]
[1767915764525,17.98561151,139.0,138.94,0.71864027]
[1767915764747,2.23072967,138.98,138.94,0.71864027]
[1767915766543,3.48325797,138.98,138.94,0.71864027]
[1767915769235,7.19579765,138.97,138.94,0.71864027]
[1767915770139,10.67905562,138.97,138.94,0.71864027]
[1767915790758,3.48325797,138.97,138.94,0.71864027]
[1767915793664,3.48325797,138.95,138.86,0.67966074]
[1767915793959,3.48325797,138.92,138.89,0.67966074]
[1767915794366,3.48325797,138.91,138.89,0.67966074]
[1767915794540,3.45325798,138.91,138.89,0.67966074]
[1767915795047,3.48325797,138.91,138.89,0.67966074]
[1767915796848,3.48325797,138.9,138.87,0.67966074]
[1767915797048,7.19907731,138.91,138.88,0.67966074]
[1767915797273,3.48325797,138.9,138.88,0.67966074]
[1767915800270,3.48325797,138.91,138.88,0.67966074]
[1767915802475,3.48325797,138.9,138.88,0.67966074]
[1767915803760,3.48325797,138.91,138.88,0.67966074]
[1767915805586,10.68209278,138.92,138.88,0.67966074]
[1767915809883,3.48325797,138.91,138.88,0.67966074]
[1767915815869,10.68222026,138.91,138.88,0.67966074]
[1767915816685,3.48325797,138.89,138.81,9.01021002]
[1767915816978,3.48325797,138.89,138.79,0.2]
[1767915816979,3.48325797,138.85,138.79,0.2]
[1767915817185,3.48325797,138.85,138.79,3.68325797]
[1767915817779,3.48325797,138.84,138.79,10.88820289]
[1767915818686,3.45325798,138.84,138.82,0.69784884]
[1767915820081,3.45325798,138.84,138.81,0.69784884]
[1767915820082,10.65585373,138.84,138.81,0.69784884]
[1767915820284,10.65585373,138.84,138.8,0.89784884]
[1767915820583,3.48325797,138.83,138.8,0.89784884]
[1767915821987,25.20893398,138.84,138.8,0.89784884]
[1767915822289,28.69219195,138.84,138.8,0.89784884]
[1767915823410,3.48325797,138.83,138.8,0.89784884]
[1767915824182,3.48325797,138.82,138.8,0.89784884]
[1767915824693,3.48325797,138.82,138.8,0.2]
[1767915826595,2.2342408,138.82,138.8,0.2]
[1767915826978,9.43794144,138.82,138.8,0.2]
[1767915827375,9.43749669,138.83,138.8,0.2]
[1767915829292,7.20325589,138.83,138.8,0.2]
[1767915829673,7.20325589,138.83,138.8,0.89784884]
[1767915830590,7.20325589,138.83,138.81,0.69784884]
[1767915832673,9.43749669,138.83,138.81,0.69784884]
[1767915832878,9.43749669,138.83,138.8,0.2]
[1767915835797,9.43749669,138.83,138.8,0.89784884]
[1767915849031,7.20325589,138.83,138.8,0.89784884]
[1767915851108,9.43749669,138.83,138.8,0.89784884]
[1767915856224,7.20325589,138.83,138.8,0.89784884]
[1767915856411,9.43749669,138.83,138.8,0.89784884]
[1767915858328,9.43749669,138.83,138.81,0.67002837]
[1767915860325,7.20325589,138.83,138.81,0.67002837]
[1767915860507,9.43749669,138.83,138.8,0.87002837]
[1767915860706,9.43749669,138.83,138.81,0.67002837]
[1767915861827,7.20325589,138.83,138.81,0.67002837]
[1767915862036,9.43749669,138.83,138.81,0.67002837]
[1767915872137,9.43749669,138.83,138.8,0.2]
[1767915872341,9.43749669,138.83,138.8,0.87002837]
[1767915875977,2.2342408,138.82,138.8,0.87002837]
[1767915877229,2.2342408,138.82,138.81,0.70890727]
[1767915878162,9.43749669,138.83,138.81,0.70890727]
[1767915882366,2.2342408,138.82,138.81,0.70890727]
[1767915883065,9.43749669,138.83,138.81,0.70890727]
[1767915888587,10.69409255,138.83,138.81,0.70890727]
[1767915891155,10.69409255,138.83,138.8,0.90890727]
[1767915892052,10.69409255,138.83,138.81,0.70890727]
[1767915892571,10.69409255,138.83,138.8,0.2]
[1767915892975,10.69409255,138.83,138.8,0.90890727]
[1767915893165,10.69409255,138.83,138.81,0.70890727]
[1767915893488,10.69409255,138.83,138.8,0.90890727]
[1767915894790,10.69409255,138.83,138.8,0.2]
[1767915895690,10.69409255,138.83,138.8,0.90890727]
[1767915897416,7.20325589,138.83,138.8,0.90890727]
[1767915897580,13.14,138.84,138.81,0.70890727]
[1767915897899,23.83342523,138.84,138.81,0.70890727]
[1767915898090,20.34258857,138.84,138.8,8.11341896]
[1767915898272,23.83342523,138.84,138.8,8.11341896]
[1767915898984,3.49083666,138.83,138.8,0.90890727]
[1767915899881,13.16,138.85,138.8,0.90890727]
[1767915899882,3.49083666,138.84,138.8,0.90890727]
[1767915900192,13.16,138.85,138.81,0.70890727]
[1767915900398,3.49083666,138.84,138.8,0.90890727]
[1767915900873,7.20305409,138.83,138.8,0.90890727]
[1767915901074,7.20305409,138.83,138.81,0.70890727]
[1767915906302,16.65083666,138.82,138.79,0.2]
[1767915906492,0.65693694,138.79,138.74,3.95795063]
[1767915906687,3.49083666,138.77,138.74,0.2]
[1767915906897,3.49083666,138.76,138.74,0.2]
[1767915907197,10.69726831,138.77,138.74,0.2]
[1767915907901,10.69667085,138.78,138.74,0.2]
[1767915908479,10.69667085,138.78,138.75,0.66420349]
[1767915909702,10.85160459,138.78,138.75,0.66420349]
[1767915910003,10.69667085,138.78,138.75,0.66420349]
[1767915911502,10.69667085,138.78,138.72,0.66420349]
[1767915911503,3.49083666,138.76,138.72,0.66420349]
[1767915911714,16.65083666,138.76,138.72,0.66420349]
[1767915912006,16.8057704,138.76,138.72,0.66420349]
[1767915912180,3.49083666,138.75,138.72,0.66420349]
[1767915912783,3.49083666,138.74,138.71,0.86420349]
[1767915913003,3.49083666,138.72,138.7,0.66420349]
[1767915913207,3.49083666,138.71,138.7,0.66420349]
[1767915913893,3.49083666,138.72,138.7,0.66420349]
[1767915914503,23.85945789,138.73,138.7,0.66420349]
[1767915914720,13.16,138.73,138.7,0.66420349]
[1767915915184,20.36829792,138.73,138.7,0.66420349]
[1767915915385,24.01406832,138.73,138.7,0.66420349]
[1767915916610,20.36829792,138.73,138.7,0.66420349]
[1767915916797,23.85913458,138.73,138.7,0.66420349]
[1767915918700,3.49083666,138.72,138.7,0.66420349]
[1767915921904,4.15284434,138.71,138.69,1e-08]
[1767915922212,3.49083666,138.7,138.69,1e-08]
[1767915922609,3.49083666,138.7,138.68,0.86420349]
[1767915922798,0.66200768,138.71,138.68,0.2]
[1767915922799,10.70116184,138.69,138.68,0.2]
[1767915923309,7.2100342,138.7,138.68,0.2]
[1767915923517,23.86087086,138.7,138.68,0.86420349]
[1767915923891,23.83087087,138.7,138.68,0.86420349]
[1767915924087,13.16,138.7,138.68,0.86420349]
[1767915925609,11.71,138.7,138.68,0.2]
[1767915925815,10.69984534,138.72,138.68,3.69083666]
[1767915925816,20.36900868,138.72,138.68,3.69083666]
[1767915926203,21.03101636,138.72,138.68,3.69083666]
[1767915927102,21.03101636,138.72,138.68,0.2]
[1767915931036,0.66200768,138.68,138.65,0.60649359]
[1767915931211,17.31284434,138.69,138.65,0.60649359]
[1767915931414,3.49083666,138.68,138.65,0.60649359]
[1767915931799,4.15284434,138.69,138.65,0.60649359]
[1767915932205,3.49083666,138.68,138.65,0.60649359]
[1767915933905,11.36341076,138.69,138.65,0.60649359]
[1767915934104,0.70432715,138.7,138.64,0.2]
[1767915934307,4.19516381,138.68,138.64,7.41272652]
[1767915935409,4.19516381,138.66,138.64,0.2]
[1767915935608,4.16516382,138.66,138.64,0.2]
[1767915937216,3.49083666,138.65,138.6,7.27468389]
[1767915937416,16.65083666,138.67,138.6,7.27468389]
[1767915937620,3.49083666,138.64,138.6,7.27468389]
[1767915938137,3.49083666,138.63,138.6,0.05999998]
[1767915938337,3.49083666,138.61,138.57,0.1]
[1767915938510,3.49083666,138.6,138.57,0.1]
[1767915938715,10.70618944,138.6,138.57,0.1]
[1767915939129,0.70432715,138.59,138.57,0.1]
[1767915940313,4.19516381,138.59,138.57,0.1]
[1767915940828,11.41076053,138.59,138.57,0.1]
[1767915941326,4.19516381,138.59,138.57,0.1]
[1767915942434,3.49083666,138.59,138.57,0.1]
[1767915942737,4.19516381,138.59,138.57,0.1]
[1767915943328,0.70432715,138.63,138.57,3.85083664]
[1767915943522,0.70432715,138.57,138.56,0.2]
[1767915944121,4.19516381,138.57,138.56,0.2]
[1767915944321,4.19516381,138.57,138.53,7.57816343]
[1767915944522,4.19516381,138.57,138.53,0.35999998]
[1767915944730,4.19516381,138.57,138.53,7.57850667]
[1767915945528,0.70432715,138.56,138.52,11.26982607]
[1767915946628,0.70432715,138.6,138.56,0.55999998]
[1767915946832,0.70432715,138.6,138.57,3.49083666]
[1767915947221,0.70432715,138.62,138.59,4.05083664]
[1767915947424,0.70432715,138.62,138.6,3.49083666]
[1767915948637,0.70432715,138.62,138.59,2.80031752]
[1767915949349,0.70432715,138.62,138.59,10.01581006]
[1767915949928,0.70432715,138.62,138.6,2.24031754]
[1767915950134,0.70432715,138.62,138.59,2.24031754]
[1767915951348,0.70432715,138.62,138.59,9.45582562]
[1767915952545,0.70432715,138.61,138.57,10.01656023]
[1767915952740,0.70432715,138.61,138.58,2.24031754]
[1767915953949,0.70432715,138.61,138.58,2.80031752]